bitfinex/quotes_BTCUSD_20251113
["timestamp","ask_amount","ask_price","bid_price","bid_amount"]
[1763057442549,0.02,99560.0,99559.0,0.08304]
[1763057443006,0.02,99560.0,99551.0,0.01881]
[1763057443007,0.4,99560.0,99551.0,0.01881]
[1763057443212,0.323,99569.0,99559.0,0.00835]
[1763057443421,0.0157633,99562.0,99559.0,0.00835]
[1763057444191,0.323,99559.0,99550.0,0.52574743]
[1763057444431,0.323,99559.0,99549.0,0.52574743]
[1763057445647,0.324,99559.0,99549.0,0.52574743]
[1763057445857,0.4,99550.0,99541.0,0.01781]
[1763057446058,0.02,99550.0,99545.0,0.06944]
[1763057446273,0.02,99550.0,99549.0,0.00616]
[1763057446493,0.02,99550.0,99546.0,0.04341874]
[1763057446907,0.42,99550.0,99543.0,0.04341874]
[1763057447118,0.421,99550.0,99543.0,0.04341874]
[1763057447324,0.421,99550.0,99544.0,0.0747]
[1763057447531,0.01843644,99549.0,99544.0,0.0747]
[1763057447738,0.01843644,99548.0,99544.0,0.0747]
[1763057447948,0.01843644,99547.0,99544.0,0.0747]
[1763057448154,0.01843644,99546.0,99544.0,0.0747]
[1763057448357,0.01843644,99545.0,99542.0,0.04341874]
[1763057448570,0.01643644,99544.0,99542.0,0.04341874]
[1763057448799,0.001,99550.0,99544.0,0.04341874]
[1763057449188,0.42,99560.0,99554.0,0.04341874]
[1763057449403,0.42,99560.0,99545.0,0.00875]
[1763057449404,0.42,99560.0,99546.0,0.04341874]
[1763057449616,0.02,99560.0,99559.0,0.00509]
[1763057450042,0.02,99560.0,99559.0,0.07692]
[1763057450478,0.00111701,99566.0,99559.0,0.07692]
[1763057450694,0.02,99560.0,99556.0,0.52574743]
[1763057450908,0.02,99560.0,99551.0,0.07617]
[1763057450909,0.42,99560.0,99551.0,0.07617]
[1763057451124,0.2,99550.0,99542.0,0.07617]
[1763057451327,0.42,99560.0,99552.0,0.07734]
[1763057451781,0.201,99560.0,99553.0,0.04341874]
[1763057452192,0.00111701,99566.0,99555.0,0.04341874]
[1763057452398,0.00111701,99566.0,99565.0,0.00063]
[1763057452614,0.00037,99560.0,99559.0,0.04341874]
[1763057452830,0.02037,99560.0,99559.0,0.04341874]
[1763057453038,0.02037,99560.0,99530.0,0.0202788]
[1763057453039,0.92,99560.0,99551.0,0.04341874]
[1763057453447,0.9,99560.0,99551.0,0.04341874]
[1763057454697,0.323,99559.0,99550.0,0.52574743]
[1763057454908,0.323,99559.0,99530.0,0.00023159]
[1763057454909,0.323,99549.0,99541.0,0.01709]
[1763057457570,0.323,99549.0,99540.0,0.00013912]
[1763057460235,0.06457,99541.0,99540.0,0.00013912]
[1763057460439,2.38757,99541.0,99540.0,0.00013912]
[1763057460684,0.323,99536.0,99530.0,0.00023159]
[1763057460895,0.04845,99531.0,99530.0,0.00023159]
[1763057461103,0.06692091,99531.0,99530.0,0.00023159]
[1763057462194,0.09813219,99531.0,99530.0,0.00023159]
[1763057462813,0.04968219,99531.0,99530.0,0.00023159]
[1763057463019,0.01947091,99531.0,99530.0,0.00023159]
[1763057463646,0.02047091,99531.0,99530.0,0.00023159]
[1763057463855,0.01947091,99531.0,99530.0,0.00023159]
[1763057464055,0.01847091,99531.0,99530.0,0.00023159]
[1763057464300,0.06709091,99531.0,99530.0,0.00023159]
[1763057464495,0.06809091,99531.0,99530.0,0.00023159]
[1763057464710,0.39109091,99531.0,99530.0,0.00023159]
[1763057464930,2.39109091,99531.0,99530.0,0.00023159]
[1763057465147,2.40586015,99531.0,99530.0,0.00023159]
[1763057465370,2.40686015,99531.0,99530.0,0.00023159]
[1763057466480,2.40586015,99531.0,99530.0,0.00023159]
[1763057466894,2.44431741,99531.0,99530.0,0.00023159]
[1763057467101,2.40886015,99531.0,99530.0,0.00023159]
[1763057467308,2.40886015,99531.0,99520.0,0.02]
[1763057467309,0.323,99528.0,99520.0,0.02]
[1763057467526,0.77202193,99530.0,99520.0,0.02]
[1763057467527,2.37036,99521.0,99520.0,0.02]
[1763057467741,2.41004668,99521.0,99520.0,0.02]
[1763057468197,2.01847091,99521.0,99520.0,0.02]
[1763057468636,0.01847091,99521.0,99520.0,0.02]
[1763057469069,0.02047091,99521.0,99520.0,0.02]
[1763057469933,0.02147091,99521.0,99520.0,0.02]
[1763057470785,0.06751091,99521.0,99520.0,0.02]
[1763057471434,0.06741091,99521.0,99520.0,0.02]
[1763057471637,0.01837091,99521.0,99520.0,0.02]
[1763057473128,0.01937091,99521.0,99520.0,0.02]
[1763057473382,0.06841091,99521.0,99520.0,0.02025735]
[1763057473777,0.06255021,99521.0,99520.0,0.02025735]
[1763057473992,0.07831915,99521.0,99520.0,0.02025735]
[1763057474196,2.40231915,99521.0,99520.0,0.02025735]
[1763057474401,2.40774131,99521.0,99520.0,0.02025735]
[1763057474690,2.40674131,99521.0,99520.0,0.02025735]
[1763057474860,2.40774131,99521.0,99520.0,0.02025735]
[1763057475714,0.323,99520.0,99510.0,5.472e-05]
[1763057475928,2.32349,99516.0,99510.0,5.472e-05]
[1763057476151,2.3546811,99516.0,99510.0,5.472e-05]
[1763057476560,2.3546811,99516.0,99511.0,0.00023165]
[1763057477188,2.3586811,99516.0,99511.0,0.00023165]
[1763057477395,2.0,99508.0,99500.0,10.11125]
[1763057477603,2.37071,99501.0,99500.0,10.11125]
[1763057478233,2.3918663,99501.0,99500.0,10.11125]
[1763057478856,2.39200555,99501.0,99500.0,10.11125]
[1763057479487,2.39400555,99501.0,99500.0,10.11125]
[1763057479699,2.39600555,99501.0,99500.0,10.11125]
[1763057479913,2.39400555,99501.0,99500.0,10.11125]
[1763057480119,2.39400555,99501.0,99500.0,10.10601874]
[1763057480120,2.39200555,99501.0,99500.0,10.10601874]
[1763057480325,2.39700555,99501.0,99500.0,10.10601874]
[1763057480578,2.37584925,99501.0,99500.0,10.10601874]
[1763057480784,2.39699356,99501.0,99500.0,10.10601874]
[1763057481231,2.42722024,99501.0,99500.0,10.10601874]
[1763057481438,2.42722024,99501.0,99500.0,9.61850406]
[1763057482306,2.43999567,99501.0,99500.0,9.61850406]
[1763057482513,2.44099567,99501.0,99500.0,9.61850406]
[1763057482721,2.44299567,99501.0,99500.0,9.61850406]
[1763057482924,2.43999567,99501.0,99500.0,9.61850406]
[1763057483134,2.43799567,99501.0,99500.0,9.61850406]
[1763057483415,2.44499567,99501.0,99500.0,9.61850406]
[1763057483630,2.44499567,99501.0,99500.0,9.61878724]
[1763057484050,2.44099567,99501.0,99500.0,9.61878724]
[1763057484264,2.43799567,99501.0,99500.0,9.61878724]
[1763057484484,2.45749567,99501.0,99500.0,9.61878724]
[1763057485352,2.46249567,99501.0,99500.0,9.61878724]
[1763057485572,2.46649567,99501.0,99500.0,9.61878724]
[1763057485783,2.47585802,99501.0,99500.0,9.61878724]
[1763057486013,2.46008259,99501.0,99500.0,9.61878724]
[1763057486226,2.14508259,99501.0,99500.0,9.61878724]
[1763057486438,2.11485591,99501.0,99500.0,9.61878724]
[1763057486848,2.10685591,99501.0,99500.0,9.61878724]
[1763057487322,2.1138848,99501.0,99500.0,9.61878724]
[1763057487530,2.0927116,99501.0,99500.0,9.61878724]
[1763057487955,2.0832116,99501.0,99500.0,9.61878724]
[1763057488405,0.0793716,99501.0,99500.0,9.61878724]
[1763057488658,0.0225016,99501.0,99500.0,9.61878724]
[1763057488868,0.0245016,99501.0,99500.0,9.61878724]
[1763057489080,0.0185016,99501.0,99500.0,9.61878724]
[1763057489301,0.03627357,99501.0,99500.0,9.61878724]
[1763057489521,0.0235016,99501.0,99500.0,9.66220598]
[1763057489743,0.0215016,99501.0,99500.0,9.66220598]
[1763057489984,0.0195016,99501.0,99500.0,9.66220598]
[1763057490430,0.0205016,99501.0,99500.0,9.66220598]
[1763057491128,0.5,99510.0,99509.0,0.13300874]
[1763057491305,0.5,99510.0,99509.0,0.13347348]
[1763057491545,0.2074,99530.0,99519.0,0.04341874]
[1763057491761,0.0074,99530.0,99529.0,0.14628874]
[1763057492192,0.0074,99530.0,99529.0,0.08151874]
[1763057492421,0.01902194,99540.0,99537.0,0.24434904]
[1763057492624,0.04996,99585.0,99530.0,0.04341874]
[1763057492625,0.4,99570.0,99541.0,0.04341874]
[1763057492833,0.4,99570.0,99561.0,0.04341874]
[1763057493042,0.43576485,99580.0,99570.0,0.04341874]
[1763057493257,0.43576485,99580.0,99570.0,0.56916617]
[1763057493258,0.45478679,99580.0,99570.0,0.56916617]
[1763057493925,0.43902194,99570.0,99560.0,0.56571743]
[1763057494137,0.43902194,99570.0,99560.0,0.03997]
[1763057494350,0.4159049,99580.0,99569.0,0.0653]
[1763057494557,0.4159049,99580.0,99569.0,0.04341874]
[1763057494775,0.323,99579.0,99571.0,0.04341874]
[1763057495219,0.4369049,99580.0,99573.0,0.04341874]
[1763057495437,0.00114005,99580.0,99579.0,0.10871874]
[1763057495644,0.00014005,99580.0,99579.0,0.04341874]
[1763057496080,0.00114005,99580.0,99579.0,0.04341874]
[1763057496366,0.01114005,99580.0,99579.0,0.04341874]
[1763057496554,0.01014005,99580.0,99579.0,0.04341874]
[1763057496996,0.01014005,99580.0,99574.0,0.09942]
[1763057496997,0.01122016,99580.0,99575.0,0.04341874]
[1763057497210,0.01014005,99580.0,99575.0,0.04341874]
[1763057497423,0.00097728,99576.0,99575.0,0.04341874]
[1763057497636,0.00097728,99576.0,99575.0,0.14283874]
[1763057498083,0.00097728,99576.0,99575.0,0.04341874]
[1763057498296,0.00014005,99580.0,99575.0,0.04341874]
[1763057498524,0.32211733,99589.0,99588.0,0.10527]
[1763057498751,0.32211733,99589.0,99588.0,0.03997]
[1763057498921,0.33787815,99589.0,99588.0,0.03997]
[1763057499484,0.33787815,99589.0,99582.0,0.03997]
[1763057499697,0.06127,99580.0,99575.0,0.001]
[1763057499905,0.05076,99576.0,99575.0,0.001]
[1763057500118,2.0,99587.0,99575.0,0.001]
[1763057500327,0.01676082,99589.0,99575.0,0.001]
[1763057500579,0.33976082,99589.0,99575.0,0.001]
[1763057500730,0.323,99579.0,99571.0,0.04341874]
[1763057500934,0.323,99579.0,99571.0,0.00014005]
[1763057501139,0.09988,99572.0,99571.0,0.00014005]
[1763057502127,2.42288,99572.0,99571.0,0.00014005]
[1763057502879,2.4622531,99572.0,99571.0,0.00014005]
[1763057503291,2.4632531,99572.0,99571.0,0.00014005]
[1763057503702,2.4632527,99572.0,99571.0,0.00014005]
[1763057504149,2.4732527,99572.0,99571.0,0.00014005]
[1763057504362,2.45117478,99572.0,99571.0,0.00014005]
[1763057504568,0.41,99540.0,99531.0,0.04341874]
[1763057504775,0.01829478,99539.0,99531.0,0.04341874]
[1763057505788,0.01829478,99539.0,99510.0,0.00999999]
[1763057505789,0.02,99530.0,99526.0,0.04341874]
[1763057506048,0.01830001,99529.0,99518.0,0.09942]
[1763057506285,0.01830001,99528.0,99520.0,0.66146911]
[1763057506521,0.01830001,99527.0,99520.0,0.66146911]
[1763057506715,0.01830001,99526.0,99510.0,0.76088911]
[1763057507018,0.42,99520.0,99510.0,0.76088911]
[1763057507142,0.2,99510.0,99501.0,0.09942]
[1763057507340,0.2,99520.0,99504.0,0.09942]
[1763057507551,0.01830254,99519.0,99511.0,0.04341874]
[1763057507760,0.01830254,99518.0,99513.0,0.04341874]
[1763057507961,0.2,99520.0,99513.0,0.04341874]
[1763057508159,0.2,99530.0,99523.0,0.04341874]
[1763057508361,0.2,99530.0,99514.0,0.09942]
[1763057508362,0.323,99539.0,99530.0,0.04341874]
[1763057508618,0.01830758,99538.0,99531.0,0.06467]
[1763057508827,0.01830749,99537.0,99531.0,0.06467]
[1763057509062,0.01830749,99536.0,99531.0,0.06467]
[1763057509284,0.2,99530.0,99520.0,0.40707785]
[1763057509486,0.2,99530.0,99431.0,0.07194918]
[1763057509487,0.2,99520.0,99495.0,0.20101461]
[1763057509710,0.2,99520.0,99498.0,0.20100736]
[1763057509857,0.2,99520.0,99499.0,0.20100618]
[1763057510060,0.2,99520.0,99499.0,0.20100652]
[1763057510264,0.2,99520.0,99490.0,0.0221815]
[1763057510430,0.2,99520.0,99493.0,0.20101862]
[1763057510637,0.2,99520.0,99510.0,0.66146911]
[1763057511043,0.4,99520.0,99510.0,0.66146911]
[1763057511288,0.01832761,99519.0,99510.0,0.66146911]
[1763057511548,0.01832761,99519.0,99500.0,9.61850406]
[1763057511549,0.01832761,99518.0,99500.0,10.27997317]
[1763057511757,0.01832761,99517.0,99509.0,0.66146911]
[1763057511963,0.01832761,99516.0,99500.0,10.27997317]
[1763057512118,0.42,99520.0,99500.0,9.61850406]
[1763057512119,0.01832761,99515.0,99500.0,9.61850406]
[1763057512336,0.01832761,99514.0,99500.0,9.61850406]
[1763057512674,0.01832761,99514.0,99500.0,10.27997317]
[1763057514533,0.01832761,99514.0,99500.0,9.61850406]
[1763057514736,0.07959761,99514.0,99500.0,9.61850406]
[1763057514935,0.01832761,99514.0,99500.0,9.61850406]
[1763057515158,0.07959761,99514.0,99500.0,9.61850406]
[1763057515392,0.07959761,99514.0,99513.0,0.0013912]
[1763057515932,2.40259761,99514.0,99513.0,0.0013912]
[1763057516777,2.42376439,99514.0,99513.0,0.0013912]
[1763057517649,2.42676439,99514.0,99513.0,0.0013912]
[1763057518210,2.42576439,99514.0,99513.0,0.0013912]
[1763057518426,2.42876439,99514.0,99513.0,0.0013912]
[1763057519502,0.323,99507.0,99501.0,0.0251]
[1763057519703,2.38427,99502.0,99501.0,0.0251]
[1763057520008,2.19395207,99501.0,99500.0,8.91465239]
[1763057520145,2.23343536,99501.0,99500.0,8.91465239]
[1763057520345,2.25293536,99501.0,99500.0,8.91465239]
[1763057520664,2.25297077,99501.0,99500.0,8.91498705]
[1763057521026,2.24347077,99501.0,99500.0,8.91498705]
[1763057521359,0.02336302,99501.0,99500.0,8.91498705]
[1763057521718,0.01836302,99501.0,99500.0,8.91498705]
[1763057522166,0.02036302,99501.0,99500.0,8.91498705]
[1763057522540,2.0,99524.0,99515.0,1.05340188]
[1763057522753,2.0,99524.0,99515.0,1.05040188]
[1763057522947,2.0,99529.0,99515.0,1.05040188]
[1763057523344,0.4,99530.0,99515.0,1.05040188]
[1763057523571,2.0,99529.0,99515.0,1.04940188]
[1763057523798,1.9973366,99529.0,99516.0,0.09909]
[1763057523975,1.9973366,99539.0,99528.0,0.03737]
[1763057524148,0.01,99530.0,99529.0,0.01107]
[1763057524352,0.01,99530.0,99529.0,0.00907]
[1763057524745,0.01,99530.0,99529.0,0.10816]
[1763057525118,0.00013979,99539.0,99529.0,0.10816]
[1763057525119,0.00013979,99539.0,99538.0,2e-08]
[1763057525303,0.00113979,99539.0,99538.0,2e-08]
[1763057525696,0.00113979,99539.0,99529.0,0.09909]
[1763057526247,0.001,99530.0,99529.0,0.09909]
[1763057526461,0.001,99530.0,99528.0,0.0215986]
[1763057526462,0.02,99530.0,99528.0,0.0215986]
[1763057526699,0.32313979,99539.0,99529.0,0.002]
[1763057527028,0.02,99530.0,99529.0,0.004]
[1763057527194,0.02,99530.0,99528.0,0.0215986]
[1763057527391,0.32313979,99539.0,99528.0,0.0215986]
[1763057527596,0.32313979,99539.0,99529.0,0.003]
[1763057528059,0.02,99530.0,99528.0,0.0235986]
[1763057528491,0.46038979,99539.0,99528.0,0.003]
[1763057528627,0.09138,99538.0,99528.0,0.003]
[1763057528832,2.38447,99529.0,99528.0,0.001]
[1763057529042,2.0,99527.0,99504.0,0.00023168]
[1763057529240,2.39943,99516.0,99504.0,0.00023168]
[1763057529442,2.39943,99516.0,99515.0,0.98638188]
[1763057529443,2.42061234,99516.0,99515.0,0.98638188]
[1763057530654,2.42161234,99516.0,99515.0,0.98638188]
[1763057531079,2.42461234,99516.0,99515.0,0.98738188]
[1763057531670,2.42361234,99516.0,99515.0,0.98738188]
[1763057532073,2.42561234,99516.0,99515.0,0.98738188]
[1763057532298,2.42361234,99516.0,99515.0,0.98738188]
[1763057532697,2.42061234,99516.0,99515.0,0.98638188]
[1763057532941,2.42461234,99516.0,99515.0,0.98638188]
[1763057533117,2.42361234,99516.0,99515.0,0.98638188]
[1763057533319,2.42061234,99516.0,99515.0,0.98638188]
[1763057533553,2.42161234,99516.0,99515.0,0.98638188]
[1763057533726,2.42461234,99516.0,99515.0,0.98638188]
[1763057534613,2.44300451,99516.0,99515.0,0.98638188]
[1763057535192,2.45877873,99516.0,99515.0,0.98638188]
[1763057535737,2.46877873,99516.0,99515.0,0.98638188]
[1763057536654,2.06634873,99516.0,99515.0,0.98638188]
[1763057536777,2.04516639,99516.0,99515.0,0.98638188]
[1763057536990,0.04516639,99516.0,99515.0,0.98638188]
[1763057537395,0.04416639,99516.0,99515.0,0.98638188]
[1763057537666,0.04516639,99516.0,99515.0,0.98638188]
[1763057537936,0.03516639,99516.0,99515.0,0.98638188]
[1763057538135,0.01939217,99516.0,99515.0,0.98638188]
[1763057538494,0.01939217,99516.0,99515.0,0.98738188]
[1763057538742,0.01939217,99516.0,99515.0,0.98638188]
[1763057539176,0.01939217,99516.0,99515.0,1.03180062]
[1763057539381,0.01839217,99516.0,99515.0,1.03180062]
[1763057539787,0.01839217,99516.0,99515.0,1.03280062]
[1763057540606,0.01839217,99516.0,99515.0,1.03180062]
[1763057540953,0.01839217,99516.0,99515.0,1.03380062]
[1763057541160,0.40286217,99516.0,99515.0,0.99038188]
[1763057541362,0.40286217,99516.0,99515.0,0.98838188]
[1763057541581,0.34139217,99516.0,99515.0,0.98838188]
[1763057541842,0.34139217,99516.0,99515.0,0.99138188]
[1763057542042,0.34139217,99516.0,99515.0,0.98838188]
[1763057542689,0.34139217,99516.0,99515.0,0.98938188]
[1763057543123,0.40286217,99516.0,99515.0,0.98938188]
[1763057543461,0.34139217,99516.0,99515.0,0.98938188]
[1763057543664,0.42407445,99516.0,99515.0,0.98938188]
[1763057545204,0.42407445,99516.0,99515.0,0.98638188]
[1763057545596,0.42507445,99516.0,99515.0,0.98638188]
[1763057546013,0.42407445,99516.0,99515.0,0.98638188]
[1763057546420,0.42507445,99516.0,99515.0,0.98638188]
[1763057546982,2.42407445,99516.0,99515.0,0.98638188]
[1763057548144,2.42410257,99516.0,99515.0,0.98738188]
[1763057548338,2.42410257,99516.0,99515.0,0.98638188]
[1763057549297,2.42510257,99516.0,99515.0,0.98638188]
[1763057549884,2.42510257,99516.0,99515.0,0.98629856]
[1763057550302,0.37940575,99516.0,99515.0,0.98629856]
[1763057550863,0.40403029,99516.0,99515.0,0.98629856]
[1763057551064,0.04064124,99516.0,99515.0,0.98629856]
[1763057551432,0.01942029,99516.0,99515.0,0.98629856]
[1763057551615,0.01942029,99516.0,99515.0,1.0297173]
[1763057551845,0.01942029,99516.0,99515.0,0.98629856]
[1763057552015,0.01842029,99516.0,99515.0,1.0297173]
[1763057552551,0.01842029,99516.0,99515.0,1.0317173]
[1763057552753,0.01842029,99516.0,99515.0,1.0307173]
[1763057552956,0.01842029,99516.0,99515.0,1.0297173]
[1763057553193,0.01842029,99516.0,99515.0,1.0317173]
[1763057553982,0.01842029,99516.0,99515.0,1.0337173]
[1763057554185,0.01843525,99519.0,99516.0,0.04341874]
[1763057554385,0.01843408,99518.0,99516.0,0.11804874]
[1763057554686,0.01843408,99517.0,99516.0,0.11704874]
[1763057555494,0.01843408,99517.0,99516.0,0.11904874]
[1763057555732,0.01843408,99517.0,99516.0,0.04441874]
[1763057555872,0.01843408,99517.0,99516.0,0.04241874]
[1763057556330,0.01943408,99517.0,99516.0,0.04741874]
[1763057556788,0.01943408,99517.0,99516.0,0.14735874]
[1763057557337,0.01943408,99517.0,99516.0,0.04741874]
[1763057557530,0.01943408,99517.0,99516.0,0.04441874]
[1763057557714,0.01943408,99517.0,99516.0,0.04741874]
[1763057560090,0.01943055,99517.0,99516.0,0.04741874]
[1763057561331,0.01843055,99517.0,99516.0,0.04541874]
[1763057561549,0.01843055,99517.0,99516.0,0.04241874]
[1763057561760,0.01843055,99517.0,99516.0,0.04541874]
[1763057561964,0.01843055,99517.0,99516.0,0.04841874]
[1763057563426,0.06486055,99517.0,99516.0,0.006]
[1763057563638,0.01843055,99517.0,99516.0,0.006]
[1763057563840,0.01843055,99517.0,99516.0,0.14935874]
[1763057564188,0.01843055,99517.0,99516.0,0.04641874]
[1763057564621,0.01843055,99517.0,99516.0,0.04341874]
[1763057565051,0.01843055,99517.0,99516.0,0.04541874]
[1763057565459,0.01843055,99517.0,99516.0,0.04341874]
[1763057565817,0.01843055,99517.0,99516.0,0.04541874]
[1763057566370,0.01843055,99517.0,99516.0,0.04741874]
[1763057566772,0.01843055,99517.0,99516.0,0.04541874]
[1763057566978,0.01843055,99517.0,99516.0,0.04341874]
[1763057567141,0.01843055,99517.0,99516.0,0.04741874]
[1763057568062,0.47284313,99520.0,99519.0,0.10535874]
[1763057568261,0.47284313,99520.0,99519.0,0.04341874]
[1763057569048,0.47284313,99520.0,99519.0,0.04311251]
[1763057569355,0.49284313,99520.0,99519.0,0.04311251]
[1763057569684,0.49284313,99520.0,99519.0,0.04611251]
[1763057569885,0.47284313,99520.0,99519.0,0.04611251]
[1763057570246,0.47284313,99520.0,99519.0,0.04911251]
[1763057570449,0.47284313,99520.0,99519.0,0.04311251]
[1763057570664,0.47284313,99520.0,99519.0,0.04511251]
[1763057570867,0.49284313,99520.0,99519.0,0.04711251]
[1763057571070,0.49284313,99520.0,99519.0,0.04511251]
[1763057571297,0.47284313,99520.0,99519.0,0.04511251]
[1763057571717,0.47284313,99520.0,99519.0,0.04311251]
[1763057572189,0.47284313,99520.0,99519.0,0.04411251]
[1763057572590,0.47284313,99520.0,99519.0,0.04611251]
[1763057572980,0.47284313,99520.0,99519.0,0.04411251]
[1763057573192,0.47284313,99520.0,99519.0,0.04311251]
[1763057573356,0.47284313,99520.0,99519.0,0.04611251]
[1763057573567,0.4714236,99520.0,99519.0,0.11105251]
[1763057573769,0.00013979,99539.0,99531.0,0.04341874]
[1763057574011,0.00013979,99539.0,99530.0,0.00702999]
[1763057574012,0.00013979,99539.0,99538.0,0.10535874]
[1763057574690,0.00013979,99539.0,99538.0,0.04341874]
[1763057575088,0.41,99560.0,99539.0,0.04341874]
[1763057575089,0.323,99559.0,99539.0,0.04341874]
[1763057575242,0.323,99559.0,99550.0,0.04341874]
[1763057575642,0.323,99559.0,99550.0,0.14335874]
[1763057575847,0.00028296,99551.0,99550.0,0.14335874]
[1763057576499,0.00028296,99551.0,99550.0,0.04341874]
[1763057577092,0.00028296,99551.0,99549.0,0.037]
[1763057577281,0.02,99550.0,99548.0,0.037]
[1763057577493,0.02013992,99550.0,99549.0,0.04341874]
[1763057578314,0.00013992,99550.0,99549.0,0.04341874]
[1763057579380,0.00013992,99550.0,99549.0,0.14335874]
[1763057579583,0.02013992,99550.0,99549.0,0.04341874]
[1763057579998,0.03861299,99550.0,99549.0,0.04541874]
[1763057580377,0.01861299,99550.0,99549.0,0.04541874]
[1763057580564,0.03861299,99550.0,99549.0,0.002]
[1763057580760,0.01861299,99550.0,99549.0,0.002]
[1763057581211,0.01861299,99550.0,99549.0,0.001]
[1763057581583,0.03861299,99550.0,99549.0,0.001]
[1763057581796,0.01861299,99550.0,99549.0,0.001]
[1763057581997,0.01861299,99550.0,99541.0,0.04341874]
[1763057582287,0.02013992,99550.0,99549.0,0.001]
[1763057582462,0.01862387,99550.0,99549.0,0.001]
[1763057582661,0.41888111,99550.0,99539.0,0.04341874]
[1763057582913,0.02,99540.0,99539.0,0.04341874]
[1763057583130,0.03848395,99540.0,99539.0,0.04341874]
[1763057583336,0.01848395,99540.0,99538.0,0.03467]
[1763057583462,0.02,99530.0,99517.0,0.09698]
[1763057583659,0.01848395,99529.0,99517.0,0.09698]
[1763057583950,0.01848395,99528.0,99523.0,0.04341874]
[1763057584195,0.02,99530.0,99525.0,0.04341874]
[1763057584196,0.01848395,99527.0,99525.0,0.04341874]
[1763057584367,0.01848395,99526.0,99525.0,0.04341874]
[1763057584566,0.01848395,99529.0,99523.0,0.14039874]
[1763057584845,0.01848395,99528.0,99523.0,0.14039874]
[1763057585052,0.02,99530.0,99523.0,0.14039874]
[1763057585053,0.01848395,99527.0,99523.0,0.14039874]
[1763057585254,0.01848395,99526.0,99523.0,0.14039874]
[1763057585383,0.02,99530.0,99523.0,0.14039874]
[1763057585384,0.01848395,99525.0,99523.0,0.14039874]
[1763057585596,0.01848395,99524.0,99523.0,0.14039874]
[1763057585950,0.01848395,99524.0,99523.0,0.04341874]
[1763057586180,0.01848395,99538.0,99523.0,0.04441874]
[1763057586378,0.5,99540.0,99539.0,0.04341874]
[1763057586611,0.84148502,99540.0,99539.0,0.04341874]
[1763057586828,0.01902194,99530.0,99525.0,0.04341874]
[1763057587016,0.01848502,99529.0,99524.0,0.04341874]
[1763057587221,0.01902194,99530.0,99524.0,0.04341874]
[1763057587222,0.01848502,99528.0,99524.0,0.04341874]
[1763057587491,0.01848502,99527.0,99526.0,0.04341874]
[1763057587809,0.01848502,99527.0,99524.0,0.04341874]
[1763057588010,0.01848502,99526.0,99524.0,0.06484163]
[1763057588284,0.01848502,99525.0,99523.0,0.04341874]
[1763057588422,0.01848502,99524.0,99523.0,0.04341874]
[1763057589814,0.01848502,99524.0,99523.0,0.04541874]
[1763057590284,0.01848502,99524.0,99523.0,0.04841874]
[1763057590494,0.01848502,99524.0,99523.0,0.005]
[1763057590714,0.01848502,99524.0,99523.0,0.04641874]
[1763057591202,0.01848502,99524.0,99523.0,0.14497874]
[1763057591628,0.01848502,99524.0,99523.0,0.04841874]
[1763057591828,0.01848502,99524.0,99523.0,0.04541874]
[1763057592032,0.01848502,99524.0,99523.0,0.04841874]
[1763057592245,0.01848502,99524.0,99523.0,0.04641874]
[1763057592660,0.01848502,99524.0,99523.0,0.04741874]
[1763057592870,0.01848502,99524.0,99523.0,0.04341874]
[1763057593333,0.01848502,99524.0,99523.0,0.04541874]
[1763057593765,0.01848502,99524.0,99523.0,0.04441874]
[1763057595183,0.01848502,99524.0,99523.0,0.003]
[1763057595416,0.01848502,99524.0,99523.0,0.002]
[1763057595638,0.01839502,99524.0,99523.0,0.10688874]
[1763057595879,0.01839502,99524.0,99523.0,0.10888874]
[1763057596116,0.02,99530.0,99524.0,0.04341874]
[1763057596333,0.02,99530.0,99523.0,0.004]
[1763057596555,0.02,99530.0,99523.0,0.001]
[1763057596809,0.02,99530.0,99524.0,0.04341874]
[1763057597541,0.02,99530.0,99524.0,0.13997874]
[1763057597963,0.02,99530.0,99524.0,0.04341874]
[1763057598193,0.323,99539.0,99533.0,0.06347]
[1763057598415,0.02,99530.0,99525.0,0.09656]
[1763057598638,0.323,99539.0,99525.0,0.09656]
[1763057598866,0.02,99540.0,99534.0,0.06347]
[1763057599087,0.01902194,99540.0,99530.0,0.05044873]
[1763057599311,0.32323152,99549.0,99540.0,0.04341874]
[1763057599538,0.32323152,99549.0,99530.0,0.00702999]
[1763057599539,0.32323152,99549.0,99541.0,0.03467]
[1763057600423,0.00023152,99549.0,99542.0,0.13997874]
[1763057601119,0.00023152,99549.0,99542.0,0.04341874]
[1763057601330,0.00023152,99549.0,99543.0,0.09656]
[1763057603067,0.00023152,99549.0,99543.0,0.001]
[1763057603716,0.32323152,99549.0,99543.0,0.001]
[1763057606077,0.06182,99544.0,99543.0,0.001]
[1763057606510,2.40612122,99544.0,99543.0,0.001]
[1763057606726,0.323,99529.0,99510.0,0.03467]
[1763057606940,0.02130122,99528.0,99510.0,0.03467]
[1763057607168,0.323,99529.0,99510.0,0.03467]
[1763057607617,0.01847755,99528.0,99510.0,0.03467]
[1763057607823,0.01847755,99527.0,99510.0,0.03467]
[1763057608032,0.01847755,99526.0,99510.0,0.03467]
[1763057608257,0.01847755,99525.0,99510.0,0.03467]
[1763057608495,0.01847755,99524.0,99510.0,0.03467]
[1763057608697,0.01847755,99523.0,99510.0,0.03467]
[1763057608950,0.01847755,99522.0,99510.0,0.03467]
[1763057609162,0.01847755,99522.0,99500.0,8.91465239]
[1763057609163,0.43437,99516.0,99500.0,8.91465239]
[1763057609375,0.45283968,99516.0,99500.0,8.91465239]
[1763057609797,0.45283968,99516.0,99515.0,0.98729856]
[1763057610475,0.39101968,99516.0,99515.0,0.98743835]
[1763057610895,0.45210968,99516.0,99515.0,0.98743835]
[1763057611100,0.45210968,99516.0,99515.0,0.98643835]
[1763057612282,0.45410968,99516.0,99515.0,0.98643835]
[1763057614065,2.48532864,99516.0,99515.0,0.98643835]
[1763057614820,2.48432864,99516.0,99515.0,0.98643835]
[1763057615023,2.48332864,99516.0,99515.0,0.98643835]
[1763057615244,2.48532864,99516.0,99515.0,0.98643835]
[1763057615446,2.48632864,99516.0,99515.0,0.98643835]
[1763057615649,2.48632864,99516.0,99515.0,0.97536344]
[1763057616708,2.48632864,99516.0,99515.0,0.96327279]
[1763057616709,2.48432864,99516.0,99515.0,0.96327279]
[1763057617168,2.48632864,99516.0,99515.0,0.96327279]
[1763057617605,2.48532864,99516.0,99515.0,0.96327279]
[1763057617774,2.50309986,99516.0,99515.0,0.96327279]
[1763057618602,2.49309986,99516.0,99515.0,0.96327279]